{"text_format":"1","workbook":"xlsx","n_sheets":1,"sheets":["Tabelle1"],"not_rendered":{"charts":0,"images":1,"macros":1,"external_links":0,"defined_names":0,"comments":0,"pivot_tables":0},"unopened":[],"bounds":{"document_bytes":16777216,"sheet_cells":100000,"rows_first":2000,"rows_last":500,"rows_between":2000,"halvings":0,"cell_chars":16384,"cell_head_chars":4096},"cells_cut":0,"cells_raw":0,"read":"whole","date_system":"1900"}

{"sheet":"Tabelle1","index":0,"n_rows":52,"n_cols":7,"rows_kept":52,"cut":false,"hidden":false,"merged":[[42,0,42,2],[41,3,41,6],[42,3,42,6],[9,0,9,6],[10,0,10,6],[11,0,11,6],[12,0,12,6],[13,0,13,6],[36,0,36,5],[37,0,37,5],[38,0,38,6],[39,0,39,6],[40,0,40,6],[41,0,41,2],[49,0,49,6],[50,0,50,6],[51,0,51,6],[43,3,43,6],[44,3,44,6],[45,3,45,6],[46,3,46,6],[47,3,47,6],[48,3,48,6],[43,0,43,2],[44,0,44,2],[45,0,45,2],[46,0,46,2],[47,0,47,2],[48,0,48,2]]}
["Installationsanzeige nach W3 (LU)"]
["      Neubau          Umbau           Auswechslung"]
["      Rohrweiten – vereinfachte Methode (Druckdispositiv / Belastungswerte LU) "]
["      Rohrweiten – Berechnungsmethode (Druckdispositiv / Druckverlustberechnung)"]
[]
["Beilage: Schema im Doppel, UG Plan einfach, Installationsanzeige (LU)"]
["                  Druckdispositiv Gemeinde Höri, Druckverlustberechnung"]
[]
["Ein bewilligtes Schema wird Ihnen zugestellt."]
["Liegenschaft/Strasse:"]
["Gebäude (nähre Bezeichnung):                                                                                                  Anz. Wohnungen:"]
["Eigentümer/Bauherr:                                                                                                                        Tel. "]
["Verwalter/Architekt:                                                                                                                        Tel."]
["Installateur:                                                                                                                                          Tel."]
["Verwendungszweck","LU Kalt","LU Warm","Anzahl","Total LU Kalt","Total LU Warm","Total LU gesamt"]
["Wohnbereich"]
["WC mit Spülkasten",1,null,null,{"$f":"B17*D17","v":0},{"$f":"C17*D17","v":0},{"$f":"SUM(E17,F17)","v":0}]
["Waschtisch",1,1,null,{"$f":"B18*D18","v":0},{"$f":"C18*D18","v":0},{"$f":"SUM(E18,F18)","v":0}]
["Dusche",2,2,null,0,0,0]
["Badewanne",3,3,null,0,0,0]
["Spülbecken",2,2,null,0,0,0]
["Haushaltgeschirrspülmaschine",1,null,null,0,0,0]
["Entnahmearmatur für Balkon",2,null,null,0,0,0]
["Waschtrog",2,2,null,0,0,0]
["Haushaltwaschautomat",2,null,null,0,0,0]
["Entnahmearmatur für Garten und Garage",5,null,null,0,0,0]
["Diverses"]
["Bidet",1,1,null,{"$f":"B28*D28","v":0},{"$f":"C28*D28","v":0},0]
["Waschrinne",1,1,null,{"$f":"B29*D29","v":0},{"$f":"C29*D29","v":0},0]
["Urinoir Spülung automatisch",3,null,null,0,0,0]
["Ausgussbecken",2,2,null,0,0,0]
["Stand- und Wandausguss",2,2,null,0,0,0]
["Getränkeautomat",1,null,null,0,0,0]
["Coiffeurbrause",1,1,null,0,0,0]
["Feuerlöschposten",null,null,null,0,0,0]
["Innenhydranten",null,null,null,0,0,0]
["Heizungsfüllventile sind nicht zu berücksichtigen",null,null,null,null,null,"Summe LU gesamt"]
["Wasserzähler: bleibt / neu, Grösse                                mm, Standort",null,null,null,null,null,{"$f":"SUM(G17:G37)","v":0}]
["         Anschluss ist vorhanden                                        extern:                                        mm/intern:                                                   mm"]
["         Anschluss muss geändert werden                     extern:                                        mm/intern:                                                   mm"]
["         Anschluss muss neu erstellt werden                extern:                                        mm/intern:                                                   mm"]
["Angaben der Sanitärfirma",null,null,"Stempel: Name und Adresse der Sanitärfirma"]
["Beginn der Installation: "]
["Fertigstellung: "]
["Sämtliche Installation müssen zur Abnahme inkl. Druckprobe"]
["und Schlusskontrolle gemeldet werden."]
[]
[]
["Sachbearbeiter:                                               Tel. ",null,null,"Datum:                           Unterschrift: _________________"]
["Dieses Feld wird durch das Kontrollorgan der Gemeinde Höri ausgefüllt"]
[]
["Schlusskontrolle:   Datum:                              Sachbearbeiter:                                                                 Unterschrift:_______________"]